[Event "Titled Tuesday Blitz April 26 Late 2022"]
[White "Czopor, Maciej"]
[Black "Fiorito, Fabian"]
[WhiteFideId "21805431"]
[BlackFideId "100200"]
[WhiteElo "1999"]
[BlackElo "2395"]
[Result "0-1"]
[Round "08"]
[TimeControl "180+1"]
[Date "2022.04.26"]
[WhiteClock "0:00:01"]
[BlackClock "0:01:14"]

1. Nf3 {[%clk 0:03:00]}  Nf6 {[%clk 0:03:00]} 2. g3 {[%clk 0:02:59]}  g6 {[%clk 0:03:00]} 3. Bg2 {[%clk 0:03:00]}  Bg7 {[%clk 0:03:00]} 4. O-O {[%clk 0:03:00]}  O-O {[%clk 0:03:00]} 5. d3 {[%clk 0:03:00]}  d5 {[%clk 0:03:00]} 6. Nbd2 {[%clk 0:02:59]}  c5 {[%clk 0:02:59]} 7. e4 {[%clk 0:02:58]}  Nc6 {[%clk 0:02:57]} 8. c3 {[%clk 0:02:48]}  h6 {[%clk 0:02:51]} 9. Qe2 {[%clk 0:02:43]}  b6 {[%clk 0:02:49]} 10. e5 {[%clk 0:02:39]}  Nd7 {[%clk 0:02:48]} 11. e6 {[%clk 0:02:39]}  Nf6 {[%clk 0:02:42]} 12. exf7+ {[%clk 0:02:38]}  Rxf7 {[%clk 0:02:43]} 13. d4 {[%clk 0:01:58]}  Bb7 {[%clk 0:02:22]} 14. Bh3 {[%clk 0:01:50]}  Kh7 {[%clk 0:02:20]} 15. Be6 {[%clk 0:01:49]}  Rf8 {[%clk 0:02:19]} 16. Re1 {[%clk 0:01:39]}  Qd6 {[%clk 0:02:18]} 17. Qf1 {[%clk 0:00:52]}  Ne4 {[%clk 0:02:03]} 18. Nxe4 {[%clk 0:00:45]}  dxe4 {[%clk 0:02:02]} 19. Ng5+ {[%clk 0:00:36]}  hxg5 {[%clk 0:02:00]} 20. Qh3+ {[%clk 0:00:36]}  Bh6 {[%clk 0:01:56]} 21. Bxg5 {[%clk 0:00:36]}  Qxe6 {[%clk 0:01:34]} 22. Qxe6 {[%clk 0:00:37]}  Bxg5 {[%clk 0:01:33]} 23. d5 {[%clk 0:00:20]}  Nd8 {[%clk 0:01:29]} 24. Qxe4 {[%clk 0:00:19]}  Bf6 {[%clk 0:01:27]} 25. Rad1 {[%clk 0:00:18]}  Nf7 {[%clk 0:01:27]} 26. Qg4 {[%clk 0:00:11]}  Nd6 {[%clk 0:01:25]} 27. f4 {[%clk 0:00:10]}  Bc8 {[%clk 0:01:25]} 28. Qf3 {[%clk 0:00:07]}  Kg7 {[%clk 0:01:25]} 29. Kg2 {[%clk 0:00:05]}  Nf5 {[%clk 0:01:20]} 30. h4 {[%clk 0:00:04]}  Bb7 {[%clk 0:01:19]} 31. Re6 {[%clk 0:00:02]}  Bc8 {[%clk 0:01:15]} 32. Re2 {[%clk 0:00:01]}  Ba6 {[%clk 0:01:14]} 33. c4 {[%clk 0:00:01]}  Bxc4 {[%clk 0:01:14]} 34. Re6 {[%clk 0:00:01]}  Rad8 {[%clk 0:01:14]} 35. g4 {[%clk 0:00:01]}  Nxh4+ {[%clk 0:01:14]} 0-1


[Site "https://www.chess.com"]

[Event "Titled Tuesday Blitz April 26 Late 2022"]
[White "Dahlgren, James Allen"]
[Black "Winkels, Marcel"]
[WhiteFideId "22256873"]
[BlackFideId "1003887"]
[WhiteElo "2091"]
[BlackElo "1900"]
[Result "0-1"]
[Round "08"]
[TimeControl "180+1"]
[Date "2022.04.26"]
[WhiteClock "0:00:03"]
[BlackClock "0:00:21"]

1. d3 {[%clk 0:03:00]}  c5 {[%clk 0:02:58]} 2. f4 {[%clk 0:03:00]}  Nc6 {[%clk 0:02:57]} 3. Nf3 {[%clk 0:03:00]}  g6 {[%clk 0:02:57]} 4. Nc3 {[%clk 0:03:01]}  Bg7 {[%clk 0:02:57]} 5. e4 {[%clk 0:03:02]}  d6 {[%clk 0:02:56]} 6. Be2 {[%clk 0:03:02]}  e6 {[%clk 0:02:56]} 7. O-O {[%clk 0:03:03]}  Nge7 {[%clk 0:02:56]} 8. g4 {[%clk 0:03:03]}  O-O {[%clk 0:02:53]} 9. g5 {[%clk 0:03:00]}  Nd4 {[%clk 0:02:51]} 10. Be3 {[%clk 0:02:59]}  d5 {[%clk 0:02:48]} 11. Bf2 {[%clk 0:02:42]}  Nxf3+ {[%clk 0:02:45]} 12. Bxf3 {[%clk 0:02:41]}  d4 {[%clk 0:02:45]} 13. Ne2 {[%clk 0:02:38]}  e5 {[%clk 0:02:45]} 14. h4 {[%clk 0:02:24]}  Bh3 {[%clk 0:02:32]} 15. Bg2 {[%clk 0:02:22]}  Bxg2 {[%clk 0:02:29]} 16. Kxg2 {[%clk 0:02:23]}  Qd7 {[%clk 0:02:27]} 17. Bg3 {[%clk 0:02:14]}  Nc6 {[%clk 0:02:14]} 18. f5 {[%clk 0:02:10]}  f6 {[%clk 0:01:58]} 19. fxg6 {[%clk 0:01:47]}  hxg6 {[%clk 0:01:54]} 20. c4 {[%clk 0:01:36]}  f5 {[%clk 0:01:53]} 21. exf5 {[%clk 0:01:26]}  Rxf5 {[%clk 0:01:52]} 22. Bh2 {[%clk 0:01:13]}  Raf8 {[%clk 0:01:46]} 23. Rxf5 {[%clk 0:01:10]}  Qxf5 {[%clk 0:01:45]} 24. Ng3 {[%clk 0:01:11]}  Qe6 {[%clk 0:01:30]} 25. Qe2 {[%clk 0:00:46]}  Ne7 {[%clk 0:01:29]} 26. Rf1 {[%clk 0:00:40]}  Nf5 {[%clk 0:01:27]} 27. Nxf5 {[%clk 0:00:35]}  gxf5 {[%clk 0:01:15]} 28. Qf3 {[%clk 0:00:21]}  e4 {[%clk 0:01:10]} 29. Qg3 {[%clk 0:00:17]}  e3 {[%clk 0:01:05]} 30. Qf3 {[%clk 0:00:16]}  b6 {[%clk 0:01:01]} 31. Re1 {[%clk 0:00:16]}  Be5 {[%clk 0:00:56]} 32. Bf4 {[%clk 0:00:15]}  Re8 {[%clk 0:00:54]} 33. h5 {[%clk 0:00:16]}  Bxf4 {[%clk 0:00:54]} 34. Qxf4 {[%clk 0:00:17]}  Qe5 {[%clk 0:00:54]} 35. Qxe5 {[%clk 0:00:16]}  Rxe5 {[%clk 0:00:53]} 36. Kf3 {[%clk 0:00:17]}  b5 {[%clk 0:00:40]} 37. Kf4 {[%clk 0:00:17]}  Re8 {[%clk 0:00:39]} 38. cxb5 {[%clk 0:00:17]}  c4 {[%clk 0:00:39]} 39. dxc4 {[%clk 0:00:17]}  e2 {[%clk 0:00:37]} 40. Kf3 {[%clk 0:00:09]}  d3 {[%clk 0:00:37]} 41. c5 {[%clk 0:00:05]}  f4 {[%clk 0:00:37]} 42. c6 {[%clk 0:00:05]}  Re3+ {[%clk 0:00:35]} 43. Kxf4 {[%clk 0:00:05]}  d2 {[%clk 0:00:31]} 44. Kxe3 {[%clk 0:00:05]}  dxe1=Q {[%clk 0:00:30]} 45. c7 {[%clk 0:00:06]}  Qc1+ {[%clk 0:00:28]} 46. Kxe2 {[%clk 0:00:06]}  Qxc7 {[%clk 0:00:27]} 47. a4 {[%clk 0:00:06]}  Qe5+ {[%clk 0:00:27]} 48. Kd3 {[%clk 0:00:06]}  Qxg5 {[%clk 0:00:28]} 49. Kc4 {[%clk 0:00:05]}  Qxh5 {[%clk 0:00:28]} 50. b4 {[%clk 0:00:05]}  Qg4+ {[%clk 0:00:27]} 51. Kc5 {[%clk 0:00:05]}  Qd7 {[%clk 0:00:26]} 52. a5 {[%clk 0:00:06]}  Kf7 {[%clk 0:00:25]} 53. b6 {[%clk 0:00:06]}  axb6+ {[%clk 0:00:24]} 54. Kxb6 {[%clk 0:00:07]}  Qd6+ {[%clk 0:00:23]} 55. Kb7 {[%clk 0:00:05]}  Qxb4+ {[%clk 0:00:22]} 56. Ka6 {[%clk 0:00:04]}  Ke6 {[%clk 0:00:20]} 57. Ka7 {[%clk 0:00:03]}  Qxa5+ {[%clk 0:00:21]} 0-1


[Site "https://www.chess.com"]

[Event "Titled Tuesday Blitz April 26 Late 2022"]
[White "De Souza, Cristiano Gomes"]
[Black "Buchenau, Frank"]
[WhiteFideId "2151758"]
[BlackFideId "4604350"]
[WhiteElo "2068"]
[BlackElo "2193"]
[Result "1/2-1/2"]
[Round "08"]
[TimeControl "180+1"]
[Date "2022.04.26"]
[WhiteClock "0:00:50"]
[BlackClock "0:01:46"]

1. d4 {[%clk 0:02:59]}  e6 {[%clk 0:03:00]} 2. c4 {[%clk 0:02:59]}  Nf6 {[%clk 0:03:00]} 3. Nf3 {[%clk 0:02:59]}  b6 {[%clk 0:03:00]} 4. g3 {[%clk 0:02:59]}  Bb7 {[%clk 0:03:00]} 5. Bg2 {[%clk 0:02:59]}  Be7 {[%clk 0:03:01]} 6. O-O {[%clk 0:03:00]}  O-O {[%clk 0:03:02]} 7. Nc3 {[%clk 0:03:00]}  Ne4 {[%clk 0:03:02]} 8. Qc2 {[%clk 0:03:00]}  Nxc3 {[%clk 0:03:01]} 9. Qxc3 {[%clk 0:03:01]}  f5 {[%clk 0:03:01]} 10. b3 {[%clk 0:03:01]}  Bf6 {[%clk 0:03:01]} 11. Bb2 {[%clk 0:03:02]}  d6 {[%clk 0:03:00]} 12. Rad1 {[%clk 0:03:02]}  a5 {[%clk 0:03:00]} 13. Ne1 {[%clk 0:03:01]}  Bxg2 {[%clk 0:03:00]} 14. Nxg2 {[%clk 0:03:02]}  Nc6 {[%clk 0:02:55]} 15. Qf3 {[%clk 0:02:56]}  Qd7 {[%clk 0:02:54]} 16. Nf4 {[%clk 0:02:49]}  Nd8 {[%clk 0:02:53]} 17. e4 {[%clk 0:02:41]}  Bg5 {[%clk 0:02:39]} 18. exf5 {[%clk 0:02:23]}  Bxf4 {[%clk 0:02:39]} 19. Qxf4 {[%clk 0:02:17]}  Rxf5 {[%clk 0:02:37]} 20. Qe4 {[%clk 0:02:17]}  d5 {[%clk 0:02:35]} 21. Qe2 {[%clk 0:02:15]}  a4 {[%clk 0:02:33]} 22. Rfe1 {[%clk 0:02:11]}  axb3 {[%clk 0:02:32]} 23. axb3 {[%clk 0:02:10]}  Ra2 {[%clk 0:02:28]} 24. Ra1 {[%clk 0:02:09]}  Rxa1 {[%clk 0:02:27]} 25. Rxa1 {[%clk 0:02:08]}  Nc6 {[%clk 0:02:24]} 26. Re1 {[%clk 0:01:59]}  Rf6 {[%clk 0:02:22]} 27. Bc3 {[%clk 0:01:52]}  dxc4 {[%clk 0:02:16]} 28. Qxc4 {[%clk 0:01:47]}  Qd5 {[%clk 0:02:14]} 29. Qxd5 {[%clk 0:01:43]}  exd5 {[%clk 0:02:13]} 30. f4 {[%clk 0:01:41]}  Kf7 {[%clk 0:02:10]} 31. Kf2 {[%clk 0:01:40]}  Re6 {[%clk 0:02:03]} 32. Rxe6 {[%clk 0:01:32]}  Kxe6 {[%clk 0:02:04]} 33. Kf3 {[%clk 0:01:33]}  h5 {[%clk 0:02:01]} 34. h3 {[%clk 0:01:32]}  g6 {[%clk 0:02:01]} 35. g4 {[%clk 0:01:32]}  hxg4+ {[%clk 0:01:59]} 36. hxg4 {[%clk 0:01:33]}  Na7 {[%clk 0:01:57]} 37. Bb2 {[%clk 0:01:32]}  Nb5 {[%clk 0:01:57]} 38. Ke3 {[%clk 0:01:22]}  Nd6 {[%clk 0:01:55]} 39. Ba3 {[%clk 0:01:07]}  Ne4 {[%clk 0:01:55]} 40. Bb2 {[%clk 0:00:59]}  Nf6 {[%clk 0:01:54]} 41. Kf3 {[%clk 0:00:58]}  Ne4 {[%clk 0:01:48]} 42. Ke3 {[%clk 0:00:56]}  Ng3 {[%clk 0:01:48]} 43. Kf2 {[%clk 0:00:50]}  Ne4+ {[%clk 0:01:46]} 44. Ke3 {[%clk 0:00:50]} 1/2-1/2


[Site "https://www.chess.com"]

[Event "Titled Tuesday Blitz April 26 Late 2022"]
[White "Deac, Bogdan-Daniel"]
[Black "Sanal, Vahap"]
[WhiteFideId "1226380"]
[BlackFideId "6300545"]
[WhiteElo "2648"]
[BlackElo "2603"]
[Result "1/2-1/2"]
[Round "08"]
[TimeControl "180+1"]
[Date "2022.04.26"]
[WhiteClock "0:00:06"]
[BlackClock "0:00:11"]

1. e4 {[%clk 0:03:00]}  e5 {[%clk 0:02:57]} 2. Nf3 {[%clk 0:03:01]}  Nc6 {[%clk 0:02:57]} 3. d4 {[%clk 0:03:01]}  exd4 {[%clk 0:02:57]} 4. Nxd4 {[%clk 0:03:02]}  Bc5 {[%clk 0:02:58]} 5. Nb3 {[%clk 0:03:02]}  Bb6 {[%clk 0:02:58]} 6. Nc3 {[%clk 0:03:02]}  Nf6 {[%clk 0:02:56]} 7. Qe2 {[%clk 0:03:02]}  O-O {[%clk 0:02:55]} 8. Bg5 {[%clk 0:03:03]}  a5 {[%clk 0:02:54]} 9. a4 {[%clk 0:03:00]}  Nd4 {[%clk 0:02:55]} 10. Qd2 {[%clk 0:02:53]}  Nxb3 {[%clk 0:02:53]} 11. cxb3 {[%clk 0:02:54]}  h6 {[%clk 0:02:51]} 12. Bh4 {[%clk 0:02:49]}  Re8 {[%clk 0:02:33]} 13. Bxf6 {[%clk 0:02:27]}  Qxf6 {[%clk 0:02:33]} 14. Bc4 {[%clk 0:02:19]}  c6 {[%clk 0:01:55]} 15. O-O-O {[%clk 0:01:56]}  Qxf2 {[%clk 0:01:46]} 16. Qxf2 {[%clk 0:01:55]}  Bxf2 {[%clk 0:01:45]} 17. Bxf7+ {[%clk 0:01:55]}  Kxf7 {[%clk 0:01:45]} 18. Rhf1 {[%clk 0:01:56]}  Ke7 {[%clk 0:01:41]} 19. Rxf2 {[%clk 0:01:56]}  d6 {[%clk 0:01:42]} 20. Re1 {[%clk 0:01:21]}  Be6 {[%clk 0:01:41]} 21. Nd5+ {[%clk 0:01:11]}  Kd8 {[%clk 0:01:36]} 22. Nb6 {[%clk 0:01:11]}  Ra6 {[%clk 0:01:24]} 23. Nc4 {[%clk 0:01:11]}  Ke7 {[%clk 0:01:25]} 24. Rd2 {[%clk 0:01:04]}  Rd8 {[%clk 0:01:16]} 25. Red1 {[%clk 0:01:03]}  Bxc4 {[%clk 0:01:07]} 26. bxc4 {[%clk 0:01:02]}  Raa8 {[%clk 0:01:08]} 27. Rd3 {[%clk 0:00:52]}  b6 {[%clk 0:01:00]} 28. Rg3 {[%clk 0:00:42]}  g5 {[%clk 0:00:59]} 29. Rh3 {[%clk 0:00:41]}  Rh8 {[%clk 0:00:59]} 30. Rf1 {[%clk 0:00:37]}  Raf8 {[%clk 0:00:56]} 31. Rxf8 {[%clk 0:00:36]}  Rxf8 {[%clk 0:00:56]} 32. Rxh6 {[%clk 0:00:31]}  Rf4 {[%clk 0:00:41]} 33. Rh7+ {[%clk 0:00:19]}  Ke6 {[%clk 0:00:41]} 34. Rb7 {[%clk 0:00:19]}  Rxe4 {[%clk 0:00:42]} 35. b3 {[%clk 0:00:18]}  Re2 {[%clk 0:00:42]} 36. Rxb6 {[%clk 0:00:18]}  Kd7 {[%clk 0:00:40]} 37. Ra6 {[%clk 0:00:10]}  Rxg2 {[%clk 0:00:34]} 38. Rxa5 {[%clk 0:00:10]}  Kc7 {[%clk 0:00:21]} 39. Rf5 {[%clk 0:00:07]}  Kb6 {[%clk 0:00:20]} 40. h3 {[%clk 0:00:06]}  c5 {[%clk 0:00:17]} 41. Rd5 {[%clk 0:00:05]}  Kc6 {[%clk 0:00:15]} 42. Kb1 {[%clk 0:00:04]}  Kc7 {[%clk 0:00:16]} 43. Rd3 {[%clk 0:00:04]}  Kc6 {[%clk 0:00:15]} 44. Kc1 {[%clk 0:00:04]}  Kc7 {[%clk 0:00:15]} 45. Rd5 {[%clk 0:00:04]}  Kc6 {[%clk 0:00:15]} 46. Rf5 {[%clk 0:00:05]}  Kb6 {[%clk 0:00:15]} 47. Rf6 {[%clk 0:00:05]}  Kc7 {[%clk 0:00:15]} 48. Rh6 {[%clk 0:00:05]}  Kc6 {[%clk 0:00:15]} 49. h4 {[%clk 0:00:04]}  g4 {[%clk 0:00:15]} 50. Rg6 {[%clk 0:00:05]}  Rg3 {[%clk 0:00:14]} 51. Kb2 {[%clk 0:00:04]}  Rg2+ {[%clk 0:00:14]} 52. Ka3 {[%clk 0:00:04]}  g3 {[%clk 0:00:13]} 53. h5 {[%clk 0:00:04]}  Rg1 {[%clk 0:00:14]} 54. h6 {[%clk 0:00:04]}  g2 {[%clk 0:00:14]} 55. Kb2 {[%clk 0:00:04]}  Rh1 {[%clk 0:00:13]} 56. Rxg2 {[%clk 0:00:04]}  Rxh6 {[%clk 0:00:14]} 57. Rg7 {[%clk 0:00:04]}  Rh8 {[%clk 0:00:14]} 58. Ka3 {[%clk 0:00:04]}  Rh1 {[%clk 0:00:15]} 59. Kb2 {[%clk 0:00:04]}  Rh2+ {[%clk 0:00:15]} 60. Ka3 {[%clk 0:00:04]}  Rh1 {[%clk 0:00:16]} 61. Rg8 {[%clk 0:00:05]}  Kb7 {[%clk 0:00:15]} 62. Rd8 {[%clk 0:00:04]}  Kc7 {[%clk 0:00:16]} 63. Ra8 {[%clk 0:00:04]}  Rg1 {[%clk 0:00:16]} 64. Ra6 {[%clk 0:00:04]}  Rh1 {[%clk 0:00:16]} 65. a5 {[%clk 0:00:04]}  Rd1 {[%clk 0:00:14]} 66. Kb2 {[%clk 0:00:04]}  Kb7 {[%clk 0:00:14]} 67. Rb6+ {[%clk 0:00:04]}  Kc7 {[%clk 0:00:15]} 68. Rb5 {[%clk 0:00:04]}  Rh1 {[%clk 0:00:15]} 69. a6 {[%clk 0:00:04]}  Rh8 {[%clk 0:00:16]} 70. Rb7+ {[%clk 0:00:04]}  Kc6 {[%clk 0:00:17]} 71. Rg7 {[%clk 0:00:04]}  Ra8 {[%clk 0:00:16]} 72. a7 {[%clk 0:00:04]}  Kb6 {[%clk 0:00:17]} 73. Kc3 {[%clk 0:00:04]}  Rxa7 {[%clk 0:00:14]} 74. Rxa7 {[%clk 0:00:05]}  Kxa7 {[%clk 0:00:15]} 75. b4 {[%clk 0:00:05]}  Kb6 {[%clk 0:00:10]} 76. b5 {[%clk 0:00:05]}  d5 {[%clk 0:00:09]} 77. cxd5 {[%clk 0:00:06]}  Kxb5 {[%clk 0:00:10]} 78. Kd3 {[%clk 0:00:06]}  c4+ {[%clk 0:00:09]} 79. Kd4 {[%clk 0:00:06]}  c3 {[%clk 0:00:10]} 80. Kxc3 {[%clk 0:00:05]}  Kc5 {[%clk 0:00:11]} 81. d6 {[%clk 0:00:06]}  Kxd6 {[%clk 0:00:11]} 1/2-1/2


[Site "https://www.chess.com"]

[Event "Titled Tuesday Blitz April 26 Late 2022"]
[White "Dudzinski, Pawel"]
[Black "Nozdrachev, Leonid"]
[WhiteFideId "1117890"]
[BlackFideId "24113433"]
[WhiteElo "2033"]
[BlackElo "2242"]
[Result "0-1"]
[Round "08"]
[TimeControl "180+1"]
[Date "2022.04.26"]
[WhiteClock "0:00:02"]
[BlackClock "0:01:20"]

1. e4 {[%clk 0:02:43]}  d6 {[%clk 0:02:59]} 2. Nc3 {[%clk 0:02:42]}  Nf6 {[%clk 0:02:59]} 3. g3 {[%clk 0:02:43]}  e5 {[%clk 0:02:59]} 4. Bg2 {[%clk 0:02:43]}  h5 {[%clk 0:02:48]} 5. h3 {[%clk 0:02:41]}  c6 {[%clk 0:02:41]} 6. Nge2 {[%clk 0:02:37]}  Qa5 {[%clk 0:02:37]} 7. d4 {[%clk 0:02:28]}  Be7 {[%clk 0:02:34]} 8. Be3 {[%clk 0:02:16]}  Nbd7 {[%clk 0:02:32]} 9. a4 {[%clk 0:02:13]}  Nf8 {[%clk 0:02:27]} 10. d5 {[%clk 0:02:07]}  Bd7 {[%clk 0:02:23]} 11. O-O {[%clk 0:02:03]}  Ng6 {[%clk 0:02:23]} 12. f4 {[%clk 0:02:00]}  Bd8 {[%clk 0:02:16]} 13. dxc6 {[%clk 0:01:43]}  Bxc6 {[%clk 0:02:17]} 14. Qxd6 {[%clk 0:01:23]}  Be7 {[%clk 0:02:15]} 15. Qd2 {[%clk 0:01:08]}  Rd8 {[%clk 0:02:15]} 16. Qe1 {[%clk 0:00:47]}  Bc5 {[%clk 0:02:14]} 17. Bxc5 {[%clk 0:00:32]}  Qxc5+ {[%clk 0:02:15]} 18. Qf2 {[%clk 0:00:29]}  Qxf2+ {[%clk 0:02:05]} 19. Rxf2 {[%clk 0:00:30]}  h4 {[%clk 0:02:06]} 20. g4 {[%clk 0:00:18]}  exf4 {[%clk 0:02:06]} 21. Nxf4 {[%clk 0:00:18]}  Ne5 {[%clk 0:02:06]} 22. Nfd5 {[%clk 0:00:18]}  Nfd7 {[%clk 0:01:59]} 23. Nc7+ {[%clk 0:00:14]}  Ke7 {[%clk 0:01:55]} 24. N3d5+ {[%clk 0:00:14]}  Bxd5 {[%clk 0:01:51]} 25. Nxd5+ {[%clk 0:00:15]}  Kf8 {[%clk 0:01:50]} 26. Rd1 {[%clk 0:00:11]}  Rh6 {[%clk 0:01:48]} 27. b3 {[%clk 0:00:11]}  Rd6 {[%clk 0:01:45]} 28. c4 {[%clk 0:00:11]}  Nc5 {[%clk 0:01:45]} 29. Rb1 {[%clk 0:00:10]}  a5 {[%clk 0:01:43]} 30. Rf5 {[%clk 0:00:09]}  Re6 {[%clk 0:01:38]} 31. g5 {[%clk 0:00:09]}  Nc6 {[%clk 0:01:30]} 32. Kh2 {[%clk 0:00:05]}  Nxe4 {[%clk 0:01:28]} 33. Bxe4 {[%clk 0:00:04]}  Rxe4 {[%clk 0:01:29]} 34. Rbf1 {[%clk 0:00:03]}  Ne5 {[%clk 0:01:25]} 35. g6 {[%clk 0:00:02]}  f6 {[%clk 0:01:20]} 0-1


[Site "https://www.chess.com"]

[Event "Titled Tuesday Blitz April 26 Late 2022"]
[White "Ezat, Mohamed"]
[Black "Leiva, Gianmarco"]
[WhiteFideId "10600906"]
[BlackFideId "3804399"]
[WhiteElo "2386"]
[BlackElo "2323"]
[Result "0-1"]
[Round "08"]
[TimeControl "180+1"]
[Date "2022.04.26"]
[WhiteClock "0:00:22"]
[BlackClock "0:00:43"]

1. d4 {[%clk 0:03:00]}  Nf6 {[%clk 0:02:58]} 2. Nf3 {[%clk 0:02:35]}  g6 {[%clk 0:02:59]} 3. Nbd2 {[%clk 0:02:34]}  Bg7 {[%clk 0:02:57]} 4. e4 {[%clk 0:02:34]}  O-O {[%clk 0:02:56]} 5. Bc4 {[%clk 0:02:34]}  Nxe4 {[%clk 0:02:33]} 6. Nxe4 {[%clk 0:02:31]}  d5 {[%clk 0:02:33]} 7. Bd3 {[%clk 0:02:32]}  dxe4 {[%clk 0:02:33]} 8. Bxe4 {[%clk 0:02:32]}  Nc6 {[%clk 0:02:29]} 9. c3 {[%clk 0:02:32]}  e5 {[%clk 0:02:28]} 10. dxe5 {[%clk 0:02:25]}  Qxd1+ {[%clk 0:02:27]} 11. Kxd1 {[%clk 0:02:24]}  Nxe5 {[%clk 0:02:26]} 12. Nxe5 {[%clk 0:02:24]}  Bxe5 {[%clk 0:02:26]} 13. Kc2 {[%clk 0:02:23]}  c6 {[%clk 0:02:26]} 14. Bh6 {[%clk 0:02:22]}  Re8 {[%clk 0:02:26]} 15. Rhe1 {[%clk 0:02:19]}  Bxh2 {[%clk 0:02:06]} 16. Bd3 {[%clk 0:02:04]}  Bg4 {[%clk 0:01:46]} 17. g3 {[%clk 0:01:55]}  Bf3 {[%clk 0:01:46]} 18. Re3 {[%clk 0:01:52]}  Rxe3 {[%clk 0:01:43]} 19. Bxe3 {[%clk 0:01:50]}  f6 {[%clk 0:01:39]} 20. Bc4+ {[%clk 0:01:49]}  Kg7 {[%clk 0:01:38]} 21. Re1 {[%clk 0:01:46]}  Re8 {[%clk 0:01:36]} 22. Bh6+ {[%clk 0:01:37]}  Kxh6 {[%clk 0:01:36]} 23. Rxe8 {[%clk 0:01:37]}  Bg1 {[%clk 0:01:37]} 24. Be2 {[%clk 0:01:32]}  Bxe2 {[%clk 0:01:08]} 25. Rxe2 {[%clk 0:01:31]}  Kg5 {[%clk 0:01:09]} 26. f3 {[%clk 0:01:29]}  h5 {[%clk 0:01:05]} 27. Kd3 {[%clk 0:01:27]}  Bb6 {[%clk 0:00:58]} 28. Rc2 {[%clk 0:01:24]}  Bc7 {[%clk 0:00:58]} 29. Rg2 {[%clk 0:01:20]}  f5 {[%clk 0:00:56]} 30. Ke2 {[%clk 0:01:18]}  Bb6 {[%clk 0:00:51]} 31. Kf1 {[%clk 0:01:17]}  Be3 {[%clk 0:00:52]} 32. Re2 {[%clk 0:01:13]}  f4 {[%clk 0:00:52]} 33. Kg2 {[%clk 0:01:14]}  Kf5 {[%clk 0:00:51]} 34. Kh3 {[%clk 0:01:12]}  g5 {[%clk 0:00:50]} 35. gxf4 {[%clk 0:01:09]}  Kxf4 {[%clk 0:00:50]} 36. Kg2 {[%clk 0:01:09]}  h4 {[%clk 0:00:46]} 37. Re1 {[%clk 0:01:00]}  h3+ {[%clk 0:00:46]} 38. Kxh3 {[%clk 0:01:01]}  Kxf3 {[%clk 0:00:46]} 39. Rf1+ {[%clk 0:00:50]}  Bf2 {[%clk 0:00:46]} 40. Rd1 {[%clk 0:00:25]}  g4+ {[%clk 0:00:45]} 41. Kh2 {[%clk 0:00:25]}  g3+ {[%clk 0:00:40]} 42. Kh3 {[%clk 0:00:26]}  g2 {[%clk 0:00:41]} 43. Rd3+ {[%clk 0:00:22]}  Ke2 {[%clk 0:00:41]} 44. Kxg2 {[%clk 0:00:21]}  Kxd3 {[%clk 0:00:41]} 45. Kxf2 {[%clk 0:00:22]}  Kc2 {[%clk 0:00:42]} 46. Ke3 {[%clk 0:00:21]}  Kxb2 {[%clk 0:00:42]} 47. Kd3 {[%clk 0:00:22]}  Kxa2 {[%clk 0:00:43]} 0-1


[Site "https://www.chess.com"]

[Event "Titled Tuesday Blitz April 26 Late 2022"]
[White "Gnechko, Ruslan"]
[Black "Jarocka, Liwia"]
[WhiteFideId "14135868"]
[BlackFideId "21807558"]
[WhiteElo "2289"]
[BlackElo "1896"]
[Result "1/2-1/2"]
[Round "08"]
[TimeControl "180+1"]
[Date "2022.04.26"]
[WhiteClock "0:00:13"]
[BlackClock "0:00:58"]

1. d4 {[%clk 0:03:00]}  Nf6 {[%clk 0:02:59]} 2. c4 {[%clk 0:03:01]}  e6 {[%clk 0:02:59]} 3. Nc3 {[%clk 0:03:00]}  Bb4 {[%clk 0:02:59]} 4. e3 {[%clk 0:03:01]}  O-O {[%clk 0:02:58]} 5. Bd2 {[%clk 0:03:01]}  d5 {[%clk 0:02:58]} 6. Nf3 {[%clk 0:02:57]}  c5 {[%clk 0:02:57]} 7. a3 {[%clk 0:02:56]}  Bxc3 {[%clk 0:02:57]} 8. Bxc3 {[%clk 0:02:57]}  cxd4 {[%clk 0:02:57]} 9. Bxd4 {[%clk 0:02:57]}  Nc6 {[%clk 0:02:57]} 10. Bc3 {[%clk 0:02:53]}  b6 {[%clk 0:02:54]} 11. Bd3 {[%clk 0:02:49]}  Bb7 {[%clk 0:02:53]} 12. Qb1 {[%clk 0:02:38]}  Rc8 {[%clk 0:02:48]} 13. cxd5 {[%clk 0:02:35]}  Nxd5 {[%clk 0:02:48]} 14. Bxh7+ {[%clk 0:02:35]}  Kh8 {[%clk 0:02:48]} 15. Be4 {[%clk 0:02:18]}  Nxc3 {[%clk 0:02:47]} 16. bxc3 {[%clk 0:02:19]}  Qf6 {[%clk 0:02:42]} 17. Nd4 {[%clk 0:02:12]}  Na5 {[%clk 0:02:39]} 18. Bxb7 {[%clk 0:02:11]}  Nxb7 {[%clk 0:02:40]} 19. Qe4 {[%clk 0:01:56]}  Nc5 {[%clk 0:02:35]} 20. Qc2 {[%clk 0:01:52]}  e5 {[%clk 0:02:28]} 21. Nb3 {[%clk 0:01:27]}  Nxb3 {[%clk 0:02:16]} 22. Qxb3 {[%clk 0:01:28]}  e4 {[%clk 0:02:14]} 23. Rc1 {[%clk 0:01:29]}  Rc5 {[%clk 0:02:13]} 24. O-O {[%clk 0:01:28]}  Rfc8 {[%clk 0:02:10]} 25. Qb4 {[%clk 0:01:15]}  Rc4 {[%clk 0:01:56]} 26. Qb5 {[%clk 0:01:10]}  g6 {[%clk 0:01:54]} 27. h3 {[%clk 0:00:58]}  Kg7 {[%clk 0:01:54]} 28. Rfd1 {[%clk 0:00:55]}  R8c5 {[%clk 0:01:51]} 29. Qe8 {[%clk 0:00:53]}  Re5 {[%clk 0:01:47]} 30. Qd7 {[%clk 0:00:49]}  Rg5 {[%clk 0:01:42]} 31. Kf1 {[%clk 0:00:32]}  Rxc3 {[%clk 0:01:33]} 32. Qxa7 {[%clk 0:00:27]}  Ra5 {[%clk 0:01:25]} 33. Qb7 {[%clk 0:00:24]}  Raxa3 {[%clk 0:01:22]} 34. Qxe4 {[%clk 0:00:23]}  Rxc1 {[%clk 0:01:20]} 35. Rxc1 {[%clk 0:00:22]}  Ra1 {[%clk 0:01:20]} 36. Rb1 {[%clk 0:00:18]}  b5 {[%clk 0:01:15]} 37. g4 {[%clk 0:00:17]}  Ra2 {[%clk 0:01:03]} 38. Qd4 {[%clk 0:00:14]}  Rxf2+ {[%clk 0:01:01]} 39. Kg1 {[%clk 0:00:14]}  Rf3 {[%clk 0:00:59]} 40. Qxf6+ {[%clk 0:00:14]}  Kxf6 {[%clk 0:00:58]} 41. Kg2 {[%clk 0:00:12]}  Rxe3 {[%clk 0:00:58]} 42. Rxb5 {[%clk 0:00:13]}  Ra3 {[%clk 0:00:57]} 43. Rc5 {[%clk 0:00:12]}  g5 {[%clk 0:00:56]} 44. Rf5+ {[%clk 0:00:11]}  Kg6 {[%clk 0:00:56]} 45. Rb5 {[%clk 0:00:12]}  f6 {[%clk 0:00:56]} 46. Rf5 {[%clk 0:00:12]}  Rc3 {[%clk 0:00:56]} 47. Ra5 {[%clk 0:00:12]}  Rb3 {[%clk 0:00:56]} 48. Rf5 {[%clk 0:00:12]}  Rb2+ {[%clk 0:00:57]} 49. Kg3 {[%clk 0:00:12]}  Rb3+ {[%clk 0:00:57]} 50. Kg2 {[%clk 0:00:12]}  Rb2+ {[%clk 0:00:58]} 51. Kg3 {[%clk 0:00:13]}  Rb3+ {[%clk 0:00:58]} 52. Kg2 {[%clk 0:00:13]} 1/2-1/2


[Site "https://www.chess.com"]